Cogmind - Beta 13 @@@ ROGUE MODE // 2024.05.07 @ 12:06:37 Player: Some Pennies Result: Destroyed by G-47 Trooper with Particle Gun Performance ------------- Evolutions (0) 0 Regions Visited (2) 400 Robots Destroyed (28) 140 Value Destroyed (647) 647 Prototype IDs (3) 60 Alien Tech Used (0) 0 Bonus (0) 0 TOTAL SCORE: 1247 Bonus ------- None Cogmind --------- Core Integrity 0/250 Matter 284/300 Energy 156/160 System Corruption 0% Temperature Cool (48) Movement Treading (160) Location -10/Mines Parts ------- > --- POWER (1) -------- Light Nuclear Core > --- PROPULSION (2) --- Light Treads Light Treads > --- UTILITY (2) ------ Large Storage Unit Hacking Suite > --- WEAPON (2) ------- Improved Light Cannon Improved Light Cannon > --- INVENTORY (15) --- Improved Heat Sink Experimental Sensor Array Improved Terrain Scanner Transport Network Coupler Transport Network Coupler ECM Suite Particle Gun Particle Gun Improved Light Cannon Improved Light Cannon Grenade Launcher Datajack Mining Laser Peak State ------------ > --- POWER ------------ Light Nuclear Core > --- PROPULSION ------- Armored Wheel Armored Wheel > --- UTILITY ---------- Large Storage Unit Hacking Suite > --- WEAPON ----------- Improved Light Cannon Improved Light Cannon > --- INVENTORY -------- Light Treads Armored Wheel Armored Wheel Improved Heat Sink Experimental Sensor Array Improved Terrain Scanner Transport Network Coupler Transport Network Coupler ECM Suite Particle Gun Particle Gun Improved Light Cannon Improved Light Cannon Grenade Launcher Mining Laser [Rating: 18] Favorites ----------- Power Light Nuclear Core Engine Ion Engine Power Core Light Nuclear Core Propulsion Light Treads Treads Light Treads Wheel Armored Wheel Utility Large Storage Unit Device Seismic Detector Storage Large Storage Unit Hackware Hacking Suite Weapon Light Assault Rifle Energy Gun Particle Gun Ballistic Gun Light Assault Rifle Ballistic Cannon Improved Light Cannon Special Weapon Mining Laser Build | -11 -10 -10 ------- Run | Yrd Mat Min Slots Evolved . | . . . Power . | . . . Propulsion . | . . . Utility . | . . . Weapon . | . . . Parts Attached 27 | 8 13 6 Power 3 | 1 1 1 Engine 1 | 1 . . Core 2 | . 1 1 Reactor . | . . . Propulsion 7 | 2 3 2 Treads 5 | 2 1 2 Leg . | . . . Wheel 2 | . 2 . Hover . | . . . Flight . | . . . Utility 5 | 3 2 . Device 2 | 2 . . Storage 2 | 1 1 . Processor . | . . . Hackware 1 | . 1 . Protection . | . . . Artifact . | . . . Weapon 12 | 2 7 3 Energy Gun 3 | . 2 1 Energy Cannon . | . . . Ballistic Gun 6 | 2 4 . Ballistic Cannon 2 | . . 2 Launcher . | . . . Special Weapon 1 | . 1 . Impact Weapon . | . . . Slashing Weapon . | . . . Piercing Weapon . | . . . Special Melee Weapon . | . . . Unidentified Prototypes . | . . . Parts Lost . | . . . Power . | . . . Propulsion . | . . . Utility . | . . . Weapon . | . . . Highest Loss Streak . | . . . To Critical Strikes . | . . . Average Slot Usage (%) 100 | . 100 100 Engine 1 | . 1 . Core 12 | . 12 14 Treads 22 | . 26 15 Wheel 5 | . 1 12 Device 6 | . 9 . Storage 14 | . 14 14 Hackware 7 | . 4 14 Energy Gun 3 | . 4 1 Ballistic Gun 15 | . 23 2 Ballistic Cannon 9 | . . 23 Naked Turns . | . . . Heaviest Build 33 | 13 30 33 Greatest Support 40 | 40 40 40 Greatest Overweight (x) 1 | . 1 1 Average Overweight (x) . | . . . Largest Inventory Capacity 15 | 8 15 15 Average Capacity 13 | 7 13 15 Most Carried 15 | 5 15 15 Average Carried 11 | 2 11 13 Final Capacity 15 | 8 15 15 Final Carried 15 | 4 15 13 Class Distribution -------------------- 100% | Mutant Dominant Class ---------------- Mutant | -10/Materials Mutant | -10/Mines Resources | -11 -10 -10 ----------- Run | Yrd Mat Min Matter Collected 705 | 300 193 212 Remotely . | . . . Salvage Created 844 | 94 481 269 Parts 60 | 8 38 14 Haulers Intercepted 2 | . 2 . Recyclers Shooed . | . . . Parts Field Recycled . | . . . Retrieved Matter . | . . . Parts Self-Destructed . | . . . Prevented . | . . . Kills | -11 -10 -10 ------- Run | Yrd Mat Min Combat Hostiles Destroyed 16 | . 8 8 Guns 12 | . 8 4 Cannons 4 | . . 4 Classes Destroyed 9 | 2 6 1 Worker 1 | . 1 . Builder 1 | . 1 . Tunneler 2 | 2 . . Hauler 2 | . 2 . Recycler 2 | 1 . 1 Operator 1 | . 1 . Watcher 3 | . 3 . Swarmer 3 | . . 3 Grunt 13 | . 8 5 Best Kill Streak 3 | 1 3 3 Combat Bots Only 3 | . 2 3 Max Kills in Single Turn 2 | 1 2 1 Gunslinging . | . . . Exploded . | . . . Melee . | . . . Uniques/NPCs Destroyed . | . . . Combat | -11 -10 -10 -------- Run | Yrd Mat Min Hostile Shots Fired 97 | . 27 70 Missed 12 | . 3 9 Damage Taken 1061 | . 400 661 Core 256 | . 97 159 Absorbed by Shields . | . . . Core Remaining (%) 100 | 100 . . Volleys Fired 92 | 15 44 33 Largest 2 | 2 2 2 Hottest 100 | 40 100 85 Shots Fired 175 | 30 87 58 Gun 148 | 30 86 32 Cannon 26 | . . 26 Launcher . | . . . Special 1 | . 1 . Kinetic 139 | 30 67 42 Thermal 36 | . 20 16 Explosive . | . . . Electromagnetic . | . . . Robot Hit Streak 15 | 12 15 4 Robot Miss Streak 4 | 3 2 4 Penetration Max . | . . . Secondary Targets 1 | . 1 . Max Gunslinging Chain 1 | . 1 . Shots Hit Robots 113 | 22 60 31 Core Hits 49 | 7 29 13 Critical Kills . | . . . Critical Parts Destroyed . | . . . Critical Strikes 1 | . . 1 Blast 1 | . . 1 Melee Attacks . | . . . Impact . | . . . Slashing . | . . . Piercing . | . . . Sneak Attacks . | . . . Combat Hostiles . | . . . Follow-up Attacks . | . . . Damage Inflicted 1501 | 178 818 505 Guns 1113 | 178 676 259 Cannons 246 | . . 246 Explosions 142 | . 142 . Melee . | . . . Ramming . | . . . Kinetic 936 | 178 404 354 Thermal 423 | . 272 151 Explosive 142 | . 142 . Electromagnetic . | . . . Impact . | . . . Slashing . | . . . Piercing . | . . . Highest Corruption . | . . . Average Corruption . | . . . Corruption Purged . | . . . Corruption Blocked . | . . . Overload Shots . | . . . Overflow Damage 26 | . 15 11 Projectiles 11 | . . 11 Explosions 15 | . 15 . Melee . | . . . Knockbacks 5 | . . 5 Impact . | . . . Kinetic 5 | . . 5 Secondary . | . . . Self-Inflicted Damage 101 | . 101 . Shots 1 | . 1 . Rammed . | . . . Targets Rammed . | . . . Kicked . | . . . Crushed . | . . . Highest Temperature 363 | . 190 363 Average Temperature 97 | . 48 150 Received Heat Transfer 420 | . 189 231 Effects 4 | . . 4 Shutdowns 1 | . . 1 Energy Bleed 1 | . . 1 Interference 2 | . . 2 Siege Activations . | . . . Robots Corrupted . | . . . Combat Hostiles . | . . . Parts Fried . | . . . Impact Corruptions . | . . . Robots Melted . | . . . Combat Hostiles . | . . . Parts Melted 1 | . 1 . Heat Transferred 999 | . 629 370 Parts Sabotaged . | . . . Parts Stolen . | . . . Parts Stripped . | . . . Power Chain Reactions . | . . . Alert | -11 -10 -10 ------- Run | Yrd Mat Min Peak Influence 177 | 15 155 177 Initial 9 | . 9 . Average 40 | 5 42 41 Maximum Alert Level . | . . . Low Security (%) 100 | 100 100 100 Level 1 . | . . . Level 2 . | . . . Level 3 . | . . . Level 4 . | . . . Level 5 . | . . . High Security . | . . . Max Security . | . . . Squads Dispatched 1 | . 1 . Investigation . | . . . Extermination . | . . . Reinforcement 1 | . 1 . Assault . | . . . Garrison . | . . . Intercept . | . . . Searches Triggered . | . . . Construction Impeded . | . . . Haulers Reinforced . | . . . Active Scanning Responses . | . . . Cargo Convoy Interrupts . | . . . Stealth | -11 -10 -10 --------- Run | Yrd Mat Min Distress Signals . | . . . Communications Jammed . | . . . Distress Signals . | . . . Times Spotted 27 | . 18 9 Peak Tracking Total 4 | . 4 3 Tactical Retreats . | . . . Traps | -11 -10 -10 ------- Run | Yrd Mat Min Traps Triggered . | . . . Indirectly . | . . . Trap Hack Attempts . | . . . Triggered . | . . . Disarmed . | . . . Reprogrammed . | . . . Reused . | . . . Traps Extracted . | . . . Installed . | . . . Triggered . | . . . Machines | -11 -10 -10 ---------- Run | Yrd Mat Min Machines Disabled 1 | . 1 . Max in Single Turn 1 | . 1 . Machines Repaired . | . . . Machines Dismantled . | . . . Machines Sabotaged . | . . . Overloaded Fab Kills . | . . . Hacking | -11 -10 -10 --------- Run | Yrd Mat Min Machines Accessed 9 | . 9 . Terminals 7 | . 7 . Fabricators . | . . . Repair Stations . | . . . Recycling Units 2 | . 2 . Scanalyzers . | . . . Garrison Access . | . . . Total Hacks 28 | . 28 . Successful 17 | . 17 . Failed 11 | . 11 . Catastrophic 3 | . 3 . Database Lockouts . | . . . Manual 19 | . 19 . Terminals 26 | . 26 . Fabricators . | . . . Repair Stations . | . . . Recycling Units 2 | . 2 . Scanalyzers . | . . . Garrison Access . | . . . Terminal Hacks 16 | . 16 . Part Schematic 1 | . 1 . Robot Analysis 6 | . 6 . Prototype ID Bank 2 | . 2 . Emergency Access Points 1 | . 1 . Terminal Index 1 | . 1 . Alert Level 1 | . 1 . Unreport Threat 2 | . 2 . Locate Traps 2 | . 2 . Fabricator Hacks . | . . . Repair Station Hacks . | . . . Recycling Unit Hacks . | . . . Scanalyzer . | . . . Garrison Access Hacks . | . . . Unauthorized Hacks 1 | . 1 . Terminals . | . . . Fabricators . | . . . Repair Stations . | . . . Recycling Units 1 | . 1 . Mask 1 | . 1 . Scanalyzers . | . . . Garrison Access . | . . . Data Cores Recovered . | . . . Used . | . . . Hacking Detections 8 | . 8 . Full Trace Events . | . . . Feedback Events . | . . . Feedback Blocked . | . . . Robot Schematics Acquired . | . . . Robots Built . | . . . Authchips . | . . . Time . | . . . Total Robot Build Rating . | . . . Part Schematics Acquired 1 | . 1 . Parts Built . | . . . Authchips . | . . . Time . | . . . Total Part Build Rating . | . . . Parts Repaired . | . . . Time . | . . . Parts Recycled . | . . . Recycled Matter . | . . . Retrieved Matter . | . . . Retrieved Components . | . . . Parts Scanalyzed . | . . . Part Schematics Acquired . | . . . Parts Damaged . | . . . Bothacking | -11 -10 -10 ------------ Run | Yrd Mat Min Used RIF Installer . | . . . Robots Hacked . | . . . Non-combat . | . . . Combat . | . . . Robot Hacks Applied . | . . . Relay Couplers Released . | . . . Fabnet Peak Effective % . | . . . Robots Rewired . | . . . Allies Hacked . | . . . Hacks Repelled . | . . . Allies | -11 -10 -10 -------- Run | Yrd Mat Min Total Allies . | . . . Largest Group . | . . . Highest-Rated Group . | . . . Highest-Rated Ally . | . . . Total Orders . | . . . Ally Attacks . | . . . Total Damage . | . . . Kills . | . . . Allies Corrupted . | . . . Allies Melted . | . . . Intel | -11 -10 -10 ------- Run | Yrd Mat Min Robot Analysis Total 6 | . 6 . Derelict Logs Recovered 2 | . . 2 Drone Launches . | . . . Drone Recoveries . | . . . Exploration | -11 -10 -10 ------------- Run | Yrd Mat Min Turns Passed 3083 | 127 1830 1126 Spaces Moved 1702 | 52 1013 637 Core 12 | 12 . . Treads 1314 | 40 932 342 Legs . | . . . Wheels 376 | . 81 295 Hover . | . . . Flight . | . . . Fastest Speed 50 | 50 105 105 Average Speed 147 | 134 155 134 Slowest Speed 240 | 160 160 240 Overloaded Moves . | . . . Propulsion Burnouts . | . . . Robots Hopped . | . . . Cave-ins Triggered . | . . . Exploration Rate (%) 65 | 4 97 96 Regions Visited 2 Branch Regions 1 Pre-discovered Areas . | . . . Known Exits Taken . | . . . Unknown Exits Taken 2 | 1 1 . Scrap Searched 2 | . . 2 Spaces Dug 1 | . 1 . Terrain Destroyed 16 | . 12 4 Melee . | . . . Projectile 5 | . 1 4 AOE 11 | . 11 . Terrain Rammed . | . . . Walls Destroyed . | . . . Machines Disabled . | . . . Actions | -11 -10 -10 --------- Run | Yrd Mat Min Total 2128 | 85 1189 854 Wait 248 | . 83 165 Move 1700 | 51 1012 637 Hop . | . . . Pick Up 38 | 11 22 5 Fast Attach 2 | . 2 . Attach 8 | 7 1 . Detach 1 | . 1 . Swap 17 | 1 10 6 Drop 22 | . 14 8 Fire 92 | 15 44 33 Melee . | . . . Ram . | . . . Kick . | . . . Crush . | . . . Escape Stasis . | . . . Rewire . | . . . Trap . | . . . Miscellaneous . | . . . Route ------- -11/Scrapyard -10/Materials (discovered 4 exits: [*Mat x3] / [*Min]) -10/Mines (discovered 3 exits: [*Mat x2] / [*Sub]) History --------- Turn | Location | Event 2 | -11/Scrapyard | Met Revision 17 9 | -11/Scrapyard | Discovered new exit (range 16) 128 | -11/Scrapyard | Entered Materials 300 | -10/Materials | Build established: Mutant 397 | -10/Materials | Discovered new exit (range 12) 671 | -10/Materials | Discovered new exit (range 13) 1238 | -10/Materials | Discovered new exit (range 3) 1482 | -10/Materials | Discovered new exit (range 14) 1958 | -10/Materials | Entered Mines 1961 | -10/Mines | Core integrity fell below 50% 2096 | -10/Mines | Core integrity fell below 20% 2219 | -10/Mines | Discovered new exit (range 6) 2442 | -10/Mines | Found a damaged Exp. Sensor Array with a note attached 2444 | -10/Mines | Found Prototype Device 2453 | -10/Mines | Learned Materials stockpile data 2825 | -10/Mines | Discovered new exit (range 13) 2978 | -10/Mines | Discovered new exit (range 10) 3084 | -10/Mines | Destroyed by G-47 Trooper with Particle Gun Last Messages --------------- 02457_ Dropped Arm. Wheel. 02460_ Acquired Lgt. Treads. 02462_ Dropped Arm. Wheel. 02464_ Acquired 5 matter. 02470_ Acquired Datajack. 02476_ K-01 Serf collects debris. 02486_ U-05 Engineer builds a Wall. 02488_ T-07 Excavator is excavating. 02516_ Searching scrap... 02516_ Found Sml. Matter Pod. 02516_ Found Power Shielding. 02516_ Found 30 Matter. 02516_ Found 33 Matter. 02517_ Acquired 8 matter. 02789_ K-01 Serf collects debris. 02825_ EXIT=FOUND 02893_ T-07 Excavator is excavating. 02978_ EXIT=FOUND 03081_ G-34 Mercenary knocked back. 03084_ G-34 Mercenary destroyed. Map ----- +----------------------------------------------------+ | | | | | | | | | | | | | | | | | | | | | | | | | | | ?????????????????????????????????????????? | | ?????????????????????????????????????????? | | ??????????????#####??????????????????????# | | ??????????????# ?????????????????????## | | ??????????????# ??????????????????# | | ??????????????# """???????????????????# | | ??????????????# < """????????????????????# | | ???????????????% ""?????????????????????? | | ??????????????? ????????##???????????? | | ????????????????!%g????????? #??######??? | | ????????????????% ?????????# #### ##?? | | ?????############ #?????????# ##" ##? | | ?????# ##@#????####?# ## ## | | ?????# ## #???## ### # * ! | | ?????# ## #???# ## # * | | ?????# """ """ ###?# # ##[ | | ?????# """ """ ## #??# < %###### | | ?????# """ """ #### #?## % #????? | | ?????# #??# #?# ##????? | | ?????# #??# #?# ###?????? | | ?????###########??# #?# ##???????? | | ??????????????????# ### ##???????? | | ??????????????????# ##??????? | | ??????????????????# #??????? | | ????###???????????###### ### #???#### | | ???## #???????????????# #?## #??## | | ??## ##?????????????# #??## ##??# | | ?## ##????????????# #???# ##???# | | ?# ####?????????# #???# #????# | | ?# ########### ##### #?????# | | ??# ## #?????## | | ???# ## #??????## | | ???## ####### ######## #???????## | | ????### #?????# #??????# #????????# | | ??????## ##?????# #????### #????????? | | ??????## ##???### #???## #????????? | | ??????# #??## #???# ##???????? | +----------------------------------------------------+ Best States ------------- Heat Dissipation 25 Energy Generation 14 Energy Capacity 250 Matter Stores 300 Matter Capacity 300 Sight Range 16 Terrain Scan Range 16 Terrain Scan Density 10 Evasion (%) 50 Recoil Reduction 2 Offensive Hacking 10 Item Schematics ----------------- Cargo Storage Unit | -10/Materials | Hacked Robot Schematics ------------------ None Fabricated ------------ Nothing Alien Tech Used ----------------- None Achievements -------------- None Challenges ------------ None Game ------ Seed InertialSwordBoregun Manual? 0 Play Time 00:24:29 Cumulative 38.0 hours Start 2024.05.07 @ 11:39:17 End 2024.05.07 @ 12:06:37 Sessions 1 Manual Loads 0 Difficulty Rogue Special Mode None Game No. 47 Rogue 42 Adventurer 5 Explorer 0 Win Type - Total 0 Types 0/0/0/0/0/0/0/0/0 Lore% 27 Gallery% 29 Achievement% 24 Wizard Run 0 Options --------- Layout 2 ASCII 0 Keyboard 0 Movement Mouse Keybinds 0 Fullscreen 2 Font 24/Smallcaps Map View 50x44 Zoom Use 0% Tactical HUD 1 Map Filters NONE Filters NONE Steam 1 RUN: fe034c63-b503-4e14-9c7d-f6e6b0eaadbc